[Event "WYCC 2018 G14"]
[Site "Halkidiki"]
[Date "2018.10.26"]
[Round "7"]
[White "Tien, Sophie"]
[Black "Kouta, Antonia"]
[Result "1-0"]
[ECO "B51"]
[WhiteElo "1648"]
[BlackElo "1812"]
[Annotator "NA"]
[PlyCount "95"]
[EventDate "2018.10.20"]
[EventType "swiss"]
[EventCountry "GRE"]
[SourceTitle "playchess.com"]
[Source "ChessBase"]
[SourceQuality "1"]
[TimeControl "40/5400+30:1800+30"]

1. e4 {[%emt 0:00:00]} c5 {[%emt 0:00:00]} 2. Nf3 d6 {[%emt 0:00:00]} 3. Bb5+ {[%emt 0:00:35]} Nd7 {[%emt 0:00:00]} 4. c3 {[%emt 0:00:42]} Ngf6 {[%emt 0:00:48]} 5. Qe2 {[%emt 0:00:28]} a6 {[%emt 0:00:31]} 6. Bd3 {[%emt 0:00:14]} g6 {[%emt 0:02:11]} 7. Bc2 {[%emt 0:01:12]} b5 {[%emt 0:03:50]} 8. O-O {[%emt 0:01:37]} Bb7 {[%emt 0:03:54]} 9. d4 {[%emt 0:02:20]} cxd4 {[%emt 0:04:14]} 10. cxd4 {[%emt 0:00:14]} e6 {[%emt 0:06:31]} 11. Bg5 {[%emt 0:03:47]} Qb8 {[%emt 0:04:10]} 12. Nbd2 {[%emt 0:03:46]} Bg7 {[%emt 0:04:13]} 13. Rfe1 {[%emt 0:02:44]} h6 {[%emt 0:06:01]} 14. Be3 {[%emt 0:02:24]} O-O {[%emt 0:02:15]} 15. Rac1 {[%emt 0:06:32]} Bc6 {[%emt 0:08:22]} 16. Bb1 {[%emt 0:02:56]} Rc8 {[%emt 0:05:10]} 17. h3 {[%emt 0:04:02]} Nb6 {[%emt 0:06:02]} 18. b3 {[%emt 0:07:24]} Qb7 {[%emt 0:03:31]} 19. Bf4 {[%emt 0:03:26]} Ne8 {[%emt 0:04:28]} 20. Nf1 {[%emt 0:03:24]} a5 {[%emt 0:03:53]} 21. Ng3 {[%emt 0:02:03]} a4 {[%emt 0:02:20]} 22. Qd2 {[%emt 0:04:33]} Kh7 {[%emt 0:01:34]} 23. h4 {[%emt 0:03:40]} h5 {[%emt 0:03:30]} 24. Qd3 {[%emt 0:07:57]} Kg8 {[%emt 0:03:05]} 25. Bd2 {[%emt 0:04:15]} axb3 {[%emt 0:02:03]} 26. axb3 {[%emt 0:03:21]} Nd7 {[%emt 0:04:53]} 27. Ng5 {[%emt 0:01:56]} Nf8 {[%emt 0:03:49]} 28. Bc3 {[%emt 0:02:23]} e5 {[%emt 0:02:48]} 29. d5 {[%emt 0:01:35]} Bd7 {[%emt 0:00:07]} 30. Bb4 {[%emt 0:04:15]} Bh6 {[%emt 0:02:50]} 31. Bd2 {[%emt 0:02:12]} Bg7 {[%emt 0:03:53]} 32. Bc2 {[%emt 0:01:06]} Nf6 {[%emt 0:01:25]} 33. Bd1 {[%emt 0:01:20]} Bg4 {[%emt 0:01:11]} 34. f3 {[%emt 0:00:38]} Bd7 {[%emt 0:00:13]} 35. Be2 {[%emt 0:01:45]} N8h7 {[%emt 0:01:24]} 36. Nxh7 {[%emt 0:03:24]} Kxh7 {[%emt 0:00:16]} 37. f4 {[%emt 0:00:43]} Rab8 {[%emt 0:01:28]} 38. f5 {[%emt 0:00:36]} b4 {[%emt 0:00:30]} 39. Qe3 {[%emt 0:06:34]} Ra8 {[%emt 0:01:25]} 40. Rf1 {[%emt 0:00:00]} Bb5 {[%emt 0:00:00]} 41. Bxb5 {[%emt 0:13:24]} Qxb5 {[%emt 0:04:04]} 42. fxg6+ {[%emt 0:05:57]} fxg6 {[%emt 0:05:44]} 43. Rxf6 {[%emt 0:02:50]} Bxf6 {[%emt 0:02:34]} 44. Qh6+ {[%emt 0:00:38]} Kg8 {[%emt 0:00:16]} 45. Qxg6+ {[%emt 0:00:31]} Bg7 {[%emt 0:00:25]} 46. Rxc8+ {[%emt 0:00:48]} Rxc8 {[%emt 0:00:07]} 47. Qe6+ {[%emt 0:01:58]} Kh7 {[%emt 0:01:02]} 48. Qf5+ {[%emt 0:00:17]} 1-0

[Event "WYCC 2018 G14"]
[Site "Halkidiki"]
[Date "2018.10.26"]
[Round "7"]
[White "Kumar, Arya"]
[Black "Kasaeva, Sofiia"]
[Result "1-0"]
[ECO "C45"]
[WhiteElo "1619"]
[BlackElo "1874"]
[Annotator "NA"]
[PlyCount "85"]
[EventDate "2018.10.20"]
[EventType "swiss"]
[EventCountry "GRE"]
[SourceTitle "playchess.com"]
[Source "ChessBase"]
[SourceQuality "1"]
[TimeControl "40/5400+30:1800+30"]

1. e4 {[%emt 0:00:00]} e5 {[%emt 0:00:00]} 2. Nf3 {[%emt 0:00:00]} Nc6 {[%emt 0:00:00]} 3. d4 {[%emt 0:00:00]} exd4 {[%emt 0:00:11]} 4. Nxd4 {[%emt 0:00:24]} Nf6 {[%emt 0:00:13]} 5. Nxc6 {[%emt 0:00:09]} bxc6 {[%emt 0:00:07]} 6. e5 {[%emt 0:00:07]} Qe7 {[%emt 0:00:27]} 7. Qe2 {[%emt 0:00:08]} Nd5 {[%emt 0:00:24]} 8. c4 {[%emt 0:00:08]} Ba6 {[%emt 0:00:26]} 9. b3 {[%emt 0:00:20]} g6 {[%emt 0:02:35]} 10. f4 {[%emt 0:00:11]} Bg7 {[%emt 0:04:07]} 11. Qf2 {[%emt 0:00:24]} Nf6 {[%emt 0:40:36]} 12. Ba3 {[%emt 0:00:33]} Qe6 {[%emt 0:04:22]} 13. Nc3 {[%emt 0:11:43]} Ng4 {[%emt 0:17:12]} 14. Qe2 {[%emt 0:02:47]} d6 15. h3 {[%emt 0:00:30]} Nh6 16. Ne4 {[%emt 0:00:30]} O-O 17. O-O-O {[%emt 0:00:30]} Rfe8 18. Qf3 {[%emt 0:00:30]} dxe5 19. Nc5 {[%emt 0:00:30]} Qc8 20. Qxc6 {[%emt 0:00:30]} Bf8 21. Bb2 {[%emt 0:00:30]} Bxc5 22. Qxc5 {[%emt 0:00:30]} Nf5 23. Bxe5 {[%emt 0:00:30]} Qe6 24. g4 {[%emt 0:00:30]} Ne7 25. Bg2 {[%emt 0:00:30]} Rad8 26. Rhe1 {[%emt 0:00:30]} Rxd1+ 27. Rxd1 {[%emt 0:00:30]} f6 28. Bc3 {[%emt 0:00:30]} Qe2 29. Rd2 {[%emt 0:00:30]} Qe1+ 30. Kc2 {[%emt 0:00:30]} Qe6 31. Bf3 {[%emt 0:00:30]} Kf7 32. Qxc7 {[%emt 0:00:30]} Rc8 33. Qd6 {[%emt 0:00:30]} Re8 34. Qxe6+ {[%emt 0:00:30]} Kxe6 35. Bxf6 {[%emt 0:00:30]} Kxf6 36. Rd6+ {[%emt 0:00:30]} Kg7 37. Rxa6 {[%emt 0:00:30]} Nc8 38. Kd3 {[%emt 0:00:30]} Rd8+ 39. Bd5 {[%emt 0:00:30]} Rf8 40. Ke3 {[%emt 0:00:30]} Re8+ 41. Re6 {[%emt 0:30:30]} Rd8 42. Rc6 {[%emt 0:00:30]} Re8+ 43. Kf3 {[%emt 0:00:30]} 1-0

[Event "WYCC 2018 G14"]
[Site "Halkidiki"]
[Date "2018.10.26"]
[Round "7"]
[White "Alimova, Sevinch"]
[Black "Jaufarally, Nadia"]
[Result "1-0"]
[ECO "E81"]
[WhiteElo "1596"]
[BlackElo "1810"]
[Annotator "NA"]
[PlyCount "61"]
[EventDate "2018.10.20"]
[EventType "swiss"]
[EventCountry "GRE"]
[SourceTitle "playchess.com"]
[Source "ChessBase"]
[SourceQuality "1"]
[TimeControl "40/5400+30:1800+30"]

1. d4 {[%emt 0:00:00]} Nf6 {[%emt 0:00:00]} 2. c4 {[%emt 0:00:00]} g6 {[%emt 0:00:00]} 3. Nc3 {[%emt 0:00:00]} Bg7 {[%emt 0:00:00]} 4. e4 {[%emt 0:00:00]} d6 {[%emt 0:00:00]} 5. f3 {[%emt 0:00:00]} O-O {[%emt 0:00:07]} 6. Be3 {[%emt 0:00:09]} a6 {[%emt 0:00:22]} 7. Qd2 {[%emt 0:01:02]} Nc6 {[%emt 0:00:22]} 8. Nge2 {[%emt 0:01:40]} Bd7 {[%emt 0:00:21]} 9. g3 {[%emt 0:13:50]} Rb8 {[%emt 0:11:08]} 10. Bg2 {[%emt 0:03:41]} b5 {[%emt 0:04:41]} 11. c5 {[%emt 0:08:21]} Na5 {[%emt 0:08:48]} 12. cxd6 {[%emt 0:06:18]} cxd6 {[%emt 0:11:38]} 13. b3 {[%emt 0:01:25]} e5 {[%emt 0:05:40]} 14. O-O {[%emt 0:07:12]} b4 {[%emt 0:05:34]} 15. Nd1 {[%emt 0:04:58]} Nh5 {[%emt 0:02:32]} 16. g4 {[%emt 0:13:18]} Nf6 {[%emt 0:03:26]} 17. Nf2 {[%emt 0:04:57]} Re8 {[%emt 0:11:30]} 18. Rfd1 {[%emt 0:04:32]} Bb5 {[%emt 0:08:52]} 19. Ng3 {[%emt 0:08:31]} Nc6 {[%emt 0:04:14]} 20. dxe5 {[%emt 0:05:18]} dxe5 {[%emt 0:00:26]} 21. g5 {[%emt 0:01:10]} Nh5 {[%emt 0:02:54]} 22. Nxh5 {[%emt 0:01:00]} gxh5 {[%emt 0:00:27]} 23. Qe1 {[%emt 0:05:32]} Qe7 {[%emt 0:02:56]} 24. Nd3 {[%emt 0:02:50]} a5 {[%emt 0:05:41]} 25. Qh4 {[%emt 0:02:22]} Nd4 {[%emt 0:03:29]} 26. Bxd4 {[%emt 0:00:13]} exd4 {[%emt 0:00:04]} 27. Qxh5 {[%emt 0:00:34]} Rec8 {[%emt 0:00:16]} 28. Bf1 {[%emt 0:00:59]} Rc2 {[%emt 0:03:32]} 29. Qg4 {[%emt 0:03:05]} Rbc8 {[%emt 0:01:15]} 30. h4 {[%emt 0:00:37]} Bc6 {[%emt 0:03:45]} 31. Qxc8+ {[%emt 0:00:38]} 1-0

[Event "WYCC 2018 G14"]
[Site "Halkidiki"]
[Date "2018.10.26"]
[Round "7"]
[White "Pandey, Divya"]
[Black "Randrianarimanana, Alicia"]
[Result "1/2-1/2"]
[ECO "E61"]
[WhiteElo "1523"]
[BlackElo "1947"]
[Annotator "NA"]
[PlyCount "83"]
[EventDate "2018.10.20"]
[EventType "swiss"]
[EventCountry "GRE"]
[SourceTitle "playchess.com"]
[Source "ChessBase"]
[SourceQuality "1"]
[TimeControl "40/5400+30:1800+30"]

1. d4 {[%emt 0:00:00]} Nf6 {[%emt 0:00:00]} 2. c4 g6 {[%emt 0:00:00]} 3. Nc3 {[%emt 0:00:00]} Bg7 {[%emt 0:00:00]} 4. Bg5 {[%emt 0:00:00]} O-O {[%emt 0:00:00]} 5. Nf3 {[%emt 0:00:06]} c5 {[%emt 0:00:27]} 6. e3 {[%emt 0:00:13]} d6 {[%emt 0:00:14]} 7. Be2 {[%emt 0:00:06]} h6 {[%emt 0:00:15]} 8. Bh4 {[%emt 0:00:09]} Bf5 {[%emt 0:00:05]} 9. O-O {[%emt 0:02:36]} Nbd7 {[%emt 0:00:29]} 10. h3 {[%emt 0:03:16]} g5 {[%emt 0:00:04]} 11. Bg3 {[%emt 0:00:18]} Ne4 {[%emt 0:03:01]} 12. Nxe4 {[%emt 0:03:57]} Bxe4 {[%emt 0:00:02]} 13. Nd2 {[%emt 0:01:11]} Bg6 {[%emt 0:00:16]} 14. Nb3 {[%emt 0:03:37]} b6 {[%emt 0:18:20]} 15. Bd3 {[%emt 0:02:44]} f5 {[%emt 0:13:15]} 16. f4 {[%emt 0:03:04]} e5 17. dxe5 {[%emt 0:11:04]} dxe5 {[%emt 0:03:37]} 18. Qc2 {[%emt 0:07:32]} e4 {[%emt 0:00:35]} 19. Be2 {[%emt 0:01:01]} gxf4 {[%emt 0:31:33]} 20. Bxf4 {[%emt 0:01:52]} Ne5 {[%emt 0:00:07]} 21. Rad1 {[%emt 0:02:06]} Qe7 {[%emt 0:00:06]} 22. Rd2 {[%emt 0:06:57]} Rad8 {[%emt 0:01:35]} 23. Rfd1 {[%emt 0:03:00]} Bf7 {[%emt 0:01:21]} 24. Nc1 {[%emt 0:04:39]} Rxd2 {[%emt 0:00:31]} 25. Rxd2 {[%emt 0:00:34]} Rd8 {[%emt 0:00:18]} 26. b3 {[%emt 0:03:08]} Rxd2 {[%emt 0:01:24]} 27. Qxd2 {[%emt 0:00:16]} Qd7 {[%emt 0:00:08]} 28. Qxd7 {[%emt 0:01:12]} Nxd7 {[%emt 0:00:01]} 29. Bd1 {[%emt 0:02:03]} Kh7 {[%emt 0:07:01]} 30. g4 {[%emt 0:01:43]} Bb2 {[%emt 0:01:46]} 31. Ne2 {[%emt 0:00:20]} fxg4 {[%emt 0:00:32]} 32. hxg4 {[%emt 0:00:12]} Ne5 {[%emt 0:01:26]} 33. Bxe5 {[%emt 0:01:36]} Bxe5 {[%emt 0:00:02]} 34. Bc2 {[%emt 0:01:02]} Bg6 {[%emt 0:00:08]} 35. Kg2 {[%emt 0:00:29]} Kg7 {[%emt 0:03:39]} 36. Ng3 {[%emt 0:01:04]} Kf6 {[%emt 0:02:08]} 37. Nxe4+ {[%emt 0:03:18]} Bxe4+ {[%emt 0:01:14]} 38. Bxe4 {[%emt 0:00:13]} Bb2 {[%emt 0:01:26]} 39. Kf3 {[%emt 0:00:39]} Ke5 {[%emt 0:00:05]} 40. Bd3 {[%emt 0:00:00]} Bc3 {[%emt 0:00:00]} 41. Bc2 {[%emt 0:02:37]} Bb2 {[%emt 0:01:05]} 42. Bd3 {[%emt 0:01:02]} 1/2-1/2

[Event "WYCC 2018 G14"]
[Site "Halkidiki"]
[Date "2018.10.26"]
[Round "7"]
[White "Wang, Isabelle"]
[Black "Bellahcene, Sofia"]
[Result "1/2-1/2"]
[ECO "B38"]
[WhiteElo "1416"]
[BlackElo "1764"]
[Annotator "NA"]
[PlyCount "87"]
[EventDate "2018.10.20"]
[EventType "swiss"]
[EventCountry "GRE"]
[SourceTitle "playchess.com"]
[Source "ChessBase"]
[SourceQuality "1"]
[TimeControl "40/5400+30:1800+30"]

1. e4 {[%emt 0:00:00]} c5 {[%emt 0:00:00]} 2. Nf3 {[%emt 0:00:00]} Nc6 {[%emt 0:00:10]} 3. d4 {[%emt 0:00:00]} cxd4 {[%emt 0:00:16]} 4. Nxd4 {[%emt 0:00:00]} g6 {[%emt 0:00:09]} 5. c4 {[%emt 0:00:05]} Bg7 {[%emt 0:00:13]} 6. Be3 {[%emt 0:00:06]} Nf6 {[%emt 0:00:22]} 7. Nc3 {[%emt 0:00:07]} d6 {[%emt 0:00:04]} 8. Be2 {[%emt 0:00:18]} Nxd4 {[%emt 0:00:25]} 9. Bxd4 {[%emt 0:00:08]} O-O {[%emt 0:00:07]} 10. O-O {[%emt 0:00:28]} Bd7 {[%emt 0:00:15]} 11. Qd2 {[%emt 0:01:51]} Bc6 {[%emt 0:00:30]} 12. f3 {[%emt 0:00:23]} a5 {[%emt 0:00:08]} 13. Rab1 {[%emt 0:01:31]} Nd7 {[%emt 0:01:26]} 14. Be3 {[%emt 0:00:51]} Nc5 {[%emt 0:00:59]} 15. b3 {[%emt 0:01:37]} Qb6 {[%emt 0:03:02]} 16. Rfc1 {[%emt 0:04:43]} Qb4 {[%emt 0:03:30]} 17. Nd5 {[%emt 0:11:59]} Bxd5 {[%emt 0:01:51]} 18. exd5 {[%emt 0:00:48]} Qxd2 {[%emt 0:10:05]} 19. Bxd2 {[%emt 0:00:09]} Bd4+ {[%emt 0:00:05]} 20. Kh1 {[%emt 0:04:59]} e5 {[%emt 0:02:51]} 21. dxe6 {[%emt 0:07:03]} fxe6 {[%emt 0:01:48]} 22. Bc3 {[%emt 0:06:45]} Bxc3 {[%emt 0:03:29]} 23. Rxc3 {[%emt 0:00:08]} e5 {[%emt 0:00:04]} 24. Kg1 {[%emt 0:06:54]} Ne6 25. Bd3 Rac8 26. Be4 Nf4 27. Rc2 b6 28. Rd2 Rf6 29. Rbd1 Rd8 30. g3 Nh3+ 31. Kg2 Ng5 32. Bd5+ Kg7 33. h4 Ne6 34. Bxe6 Rxe6 35. Rd5 Kf6 36. Rb5 Rb8 37. b4 Ra8 38. a4 axb4 39. Rxb4 Rc8 40. Rxb6 Rxc4 41. Rdxd6 Rxd6 42. Rxd6+ Kf5 43. Ra6 Rc2+ 44. Kh3 1/2-1/2

[Event "WYCC 2018 G14"]
[Site "Halkidiki"]
[Date "2018.10.26"]
[Round "7"]
[White "Jayatilaka, W M M Amodya"]
[Black "Gabbani, Sara"]
[Result "0-1"]
[ECO "A20"]
[WhiteElo "1379"]
[BlackElo "1764"]
[Annotator "NA"]
[PlyCount "104"]
[EventDate "2018.10.20"]
[EventType "swiss"]
[EventCountry "GRE"]
[SourceTitle "playchess.com"]
[Source "ChessBase"]
[SourceQuality "1"]
[TimeControl "40/5400+30:1800+30"]

1. c4 {[%emt 0:00:00]} e5 {[%emt 0:00:00]} 2. g3 {[%emt 0:00:00]} Nf6 {[%emt 0:00:02]} 3. Bg2 {[%emt 0:00:00]} Nc6 {[%emt 0:00:40]} 4. Nc3 {[%emt 0:00:02]} Bc5 {[%emt 0:01:41]} 5. e4 {[%emt 0:01:39]} a6 {[%emt 0:04:00]} 6. Nge2 {[%emt 0:03:19]} d6 {[%emt 0:02:50]} 7. h3 {[%emt 0:00:57]} Be6 {[%emt 0:03:55]} 8. d3 {[%emt 0:00:18]} h6 {[%emt 0:00:56]} 9. O-O {[%emt 0:00:49]} O-O {[%emt 0:00:46]} 10. Nd5 {[%emt 0:05:13]} Nd4 {[%emt 0:02:38]} 11. Be3 {[%emt 0:03:51]} Nxe2+ {[%emt 0:04:52]} 12. Qxe2 {[%emt 0:00:14]} Bxe3 {[%emt 0:00:46]} 13. Nxf6+ {[%emt 0:03:25]} Qxf6 {[%emt 0:01:38]} 14. Qxe3 {[%emt 0:00:20]} Rae8 {[%emt 0:04:57]} 15. a3 {[%emt 0:13:36]} c6 {[%emt 0:06:11]} 16. Rac1 Qe7 {[%emt 0:07:33]} 17. Rfe1 {[%emt 0:10:12]} Qd7 {[%emt 0:02:49]} 18. g4 {[%emt 0:01:36]} f6 19. d4 {[%emt 0:03:18]} Bf7 {[%emt 0:13:14]} 20. d5 {[%emt 0:00:42]} cxd5 {[%emt 0:00:09]} 21. cxd5 {[%emt 0:00:09]} Rc8 {[%emt 0:00:44]} 22. Rxc8 {[%emt 0:10:09]} Rxc8 {[%emt 0:00:16]} 23. Rc1 {[%emt 0:00:06]} Rc7 {[%emt 0:02:35]} 24. Rxc7 {[%emt 0:01:01]} Qxc7 {[%emt 0:00:02]} 25. Qc3 Qxc3 {[%emt 0:03:45]} 26. bxc3 {[%emt 0:01:10]} h5 {[%emt 0:01:23]} 27. f3 {[%emt 0:00:55]} h4 {[%emt 0:03:34]} 28. Kf2 {[%emt 0:00:31]} Kf8 {[%emt 0:00:26]} 29. Ke3 {[%emt 0:00:10]} g5 {[%emt 0:00:21]} 30. Bf1 {[%emt 0:00:36]} Ke7 {[%emt 0:01:24]} 31. Kd3 {[%emt 0:04:42]} Be8 {[%emt 0:06:57]} 32. c4 {[%emt 0:00:19]} Kd7 {[%emt 0:00:17]} 33. Kc3 {[%emt 0:03:24]} Kc7 {[%emt 0:00:15]} 34. Kb4 {[%emt 0:04:09]} Kb6 {[%emt 0:02:04]} 35. Bd3 {[%emt 0:01:09]} a5+ {[%emt 0:02:13]} 36. Kb3 {[%emt 0:01:45]} Kc5 {[%emt 0:00:58]} 37. Kc3 {[%emt 0:00:15]} Ba4 {[%emt 0:02:56]} 38. Be2 {[%emt 0:00:17]} b6 {[%emt 0:02:16]} 39. Kd3 {[%emt 0:08:26]} b5 {[%emt 0:01:03]} 40. Kc3 {[%emt 0:00:00]} b4+ {[%emt 0:00:00]} 41. axb4+ {[%emt 0:02:23]} axb4+ {[%emt 0:06:39]} 42. Kd2 {[%emt 0:02:46]} Bb3 {[%emt 0:01:23]} 43. Kc1 {[%emt 0:01:41]} Bxc4 {[%emt 0:00:49]} 44. Bxc4 {[%emt 0:00:09]} Kxc4 {[%emt 0:00:03]} 45. Kc2 {[%emt 0:00:09]} b3+ {[%emt 0:00:12]} 46. Kb2 {[%emt 0:00:06]} Kb4 {[%emt 0:00:11]} 47. Kb1 {[%emt 0:00:06]} Kc3 {[%emt 0:00:21]} 48. Kc1 {[%emt 0:00:04]} b2+ {[%emt 0:00:18]} 49. Kb1 {[%emt 0:00:05]} Kd3 {[%emt 0:02:14]} 50. Kxb2 {[%emt 0:00:07]} Ke3 {[%emt 0:00:05]} 51. Kc3 {[%emt 0:00:28]} Kxf3 {[%emt 0:00:41]} 52. Kd3 {[%emt 0:00:43]} Kf4 {[%emt 0:00:09] Kd4} 0-1

[Event "WYCC 2018 G14"]
[Site "Halkidiki"]
[Date "2018.10.27"]
[Round "8"]
[White "Ning, Kaiyu"]
[Black "Garifullina, Leya"]
[Result "1-0"]
[ECO "E12"]
[WhiteElo "2217"]
[BlackElo "2106"]
[Annotator "NA"]
[PlyCount "62"]
[EventDate "2018.10.20"]
[EventType "swiss"]
[EventCountry "GRE"]
[SourceTitle "playchess.com"]
[Source "ChessBase"]
[SourceQuality "1"]
[TimeControl "40/5400+30:1800+30"]

1. d4 {[%emt 0:00:00]} Nf6 {[%emt 0:00:00]} 2. c4 {[%emt 0:00:00]} e6 {[%emt 0:00:00]} 3. Nf3 {[%emt 0:00:00]} b6 {[%emt 0:00:14]} 4. a3 {[%emt 0:00:00]} Bb7 {[%emt 0:00:22]} 5. Nc3 {[%emt 0:00:00]} d5 {[%emt 0:00:46]} 6. cxd5 {[%emt 0:00:06]} Nxd5 {[%emt 0:00:06]} 7. Qc2 {[%emt 0:00:08]} Nxc3 {[%emt 0:01:16]} 8. bxc3 {[%emt 0:00:07]} Be7 {[%emt 0:00:59]} 9. e4 {[%emt 0:00:07]} c5 {[%emt 0:00:49]} 10. Bb5+ {[%emt 0:03:23]} Bc6 {[%emt 0:02:05]} 11. Bd3 {[%emt 0:00:13]} Nd7 {[%emt 0:01:36]} 12. O-O {[%emt 0:00:25] LiveBook: 29 Games} h6 {[%emt 0:04:07]} 13. Bf4 {[%emt 0:03:12]} O-O {[%emt 0:01:23]} 14. Rfd1 {[%emt 0:02:46]} cxd4 $14 {[%emt 0:03:34]} 15. cxd4 {[%emt 0:08:11]} Rc8 {[%emt 0:04:05]} 16. Qe2 {[%emt 0:11:48]} Bb7 {[%emt 0:09:48]} 17. h3 {[%emt 0:19:53]} Nf6 {[%emt 0:26:24]} 18. d5 {[%emt 0:07:41]} exd5 {[%emt 0:08:03]} 19. e5 {[%emt 0:00:04]} Nh7 {[%emt 0:02:10]} 20. Nd4 {[%emt 0:07:40]} Rc5 {[%emt 0:11:07]} 21. Qh5 {[%emt 0:13:16]} Bg5 {[%emt 0:05:17]} 22. Bh2 {[%emt 0:02:09]} g6 {[%emt 0:02:53]} 23. Qe2 {[%emt 0:00:52]} Rc8 {[%emt 0:05:58]} 24. Kh1 {[%emt 0:02:38]} Be7 {[%emt 0:01:49]} 25. Qg4 {[%emt 0:01:44]} h5 {[%emt 0:00:41]} 26. Qg3 {[%emt 0:00:12]} Bh4 {[%emt 0:02:53]} 27. Qe3 {[%emt 0:00:03]} Re8 {[%emt 0:02:16]} 28. Nb5 {[%emt 0:03:09]} Rc6 {[%emt 0:02:14]} 29. Nxa7 {[%emt 0:01:35]} d4 {[%emt 0:00:48]} 30. Nxc6 {[%emt 0:01:40]} Bxc6 {[%emt 0:00:40]} 31. Qe1 {[%emt 0:00:18]} Qd5 1-0

[Event "WYCC 2018 G14"]
[Site "Halkidiki"]
[Date "2018.10.27"]
[Round "8"]
[White "Divya Deshmukh"]
[Black "Mrudul Dehankar"]
[Result "1-0"]
[ECO "A01"]
[WhiteElo "2180"]
[BlackElo "1996"]
[Annotator "NA"]
[PlyCount "145"]
[EventDate "2018.10.20"]
[EventType "swiss"]
[EventCountry "GRE"]
[SourceTitle "playchess.com"]
[Source "ChessBase"]
[SourceQuality "1"]
[TimeControl "40/5400+30:1800+30"]

1. b3 {[%emt 0:00:00]} Nf6 {[%emt 0:00:00]} 2. Bb2 {[%emt 0:00:00]} g6 {[%emt 0:01:07]} 3. e4 {[%emt 0:00:00]} d6 {[%emt 0:03:08]} 4. g3 {[%emt 0:00:11]} Bg7 {[%emt 0:00:24]} 5. Bg2 {[%emt 0:00:05]} e5 $11 {[%emt 0:01:56] LiveBook: 14 Games} 6. Ne2 {[%emt 0:00:08]} Nc6 {[%emt 0:04:03]} 7. d4 {[%emt 0:01:53]} O-O {[%emt 0:11:15]} 8. O-O {[%emt 0:00:10]} a5 {[%emt 0:17:47]} 9. a4 {[%emt 0:07:53]} Re8 {[%emt 0:05:06]} 10. dxe5 {[%emt 0:04:03]} dxe5 {[%emt 0:03:02]} 11. Na3 {[%emt 0:05:56]} Be6 {[%emt 0:07:48]} 12. Nb5 {[%emt 0:01:29]} Qc8 {[%emt 0:01:14]} 13. Qc1 {[%emt 0:10:19]} h5 {[%emt 0:08:44]} 14. Qg5 {[%emt 0:02:26]} Nh7 {[%emt 0:05:47]} 15. Qe3 {[%emt 0:00:26]} Nb4 {[%emt 0:02:00]} 16. Qc5 {[%emt 0:22:17]} Nc6 {[%emt 0:09:17]} 17. f4 {[%emt 0:10:56]} Bg4 {[%emt 0:12:31]} 18. Qf2 {[%emt 0:01:59]} Bxe2 {[%emt 0:01:00]} 19. Qxe2 {[%emt 0:00:06]} exf4 {[%emt 0:00:55]} 20. Bxg7 {[%emt 0:00:18]} Kxg7 {[%emt 0:00:02]} 21. Rxf4 {[%emt 0:00:23]} Re7 {[%emt 0:00:27]} 22. Raf1 {[%emt 0:11:15]} Qe6 {[%emt 0:00:40]} 23. Nc3 {[%emt 0:06:09]} Rd8 {[%emt 0:00:38]} 24. Qb5 {[%emt 0:01:32]} b6 {[%emt 0:02:20]} 25. Kh1 {[%emt 0:02:40]} Nd4 {[%emt 0:00:40]} 26. Qd3 {[%emt 0:00:05]} Qe5 {[%emt 0:00:26]} 27. Nd5 {[%emt 0:02:34]} Red7 {[%emt 0:00:33]} 28. Qc3 {[%emt 0:00:25]} Re8 {[%emt 0:00:34]} 29. Bh3 {[%emt 0:01:26]} f5 {[%emt 0:00:22]} 30. Ne3 {[%emt 0:03:54]} Ne2 {[%emt 0:00:40]} 31. Qxe5+ {[%emt 0:00:05]} Rxe5 {[%emt 0:00:05]} 32. R4f2 {[%emt 0:00:06]} Ng5 {[%emt 0:00:51]} 33. Rxe2 {[%emt 0:03:53]} Nxh3 {[%emt 0:00:03]} 34. exf5 {[%emt 0:00:12]} Rf7 {[%emt 0:00:48]} 35. Kg2 {[%emt 0:00:24]} Ng5 {[%emt 0:00:25]} 36. h4 {[%emt 0:00:17]} Nh7 {[%emt 0:00:45]} 37. fxg6 {[%emt 0:01:48]} Rxf1 {[%emt 0:00:07]} 38. Kxf1 {[%emt 0:00:04]} Kxg6 {[%emt 0:00:27]} 39. Nc4 {[%emt 0:00:09]} Rf5+ {[%emt 0:00:30]} 40. Kg2 {[%emt 0:00:00]} Nf6 {[%emt 0:00:00]} 41. Re6 {[%emt 0:05:49]} Kf7 {[%emt 0:05:19]} 42. Re5 {[%emt 0:02:17]} Rxe5 {[%emt 0:07:40]} 43. Nxe5+ {[%emt 0:00:10]} Ke6 {[%emt 0:00:04]} 44. Nc4 {[%emt 0:00:08]} Kf5 {[%emt 0:03:26]} 45. Kf3 {[%emt 0:00:57]} Nd7 {[%emt 0:01:48]} 46. Ne3+ {[%emt 0:05:31]} Ke5 {[%emt 0:00:56]} 47. g4 {[%emt 0:01:14]} hxg4+ {[%emt 0:01:13]} 48. Nxg4+ {[%emt 0:00:05]} Kf5 {[%emt 0:00:37]} 49. Ne3+ {[%emt 0:00:09]} Ke5 {[%emt 0:00:48]} 50. h5 {[%emt 0:00:38]} Nf8 {[%emt 0:00:58]} 51. Kg4 {[%emt 0:01:40]} Nh7 {[%emt 0:00:20]} 52. h6 {[%emt 0:01:50]} Ke4 {[%emt 0:02:59]} 53. Nd1 {[%emt 0:00:22]} Ke5 {[%emt 0:02:51]} 54. Kh5 {[%emt 0:01:07]} Kf5 {[%emt 0:01:53]} 55. Ne3+ {[%emt 0:00:45]} Ke4 {[%emt 0:00:21]} 56. Kg6 {[%emt 0:00:29]} Nf8+ {[%emt 0:00:12]} 57. Kg7 {[%emt 0:01:09]} Ne6+ {[%emt 0:00:11]} 58. Kf6 {[%emt 0:03:55]} Nf8 {[%emt 0:00:16]} 59. Nd1 {[%emt 0:00:07]} Kf3 {[%emt 0:04:46]} 60. Nc3 {[%emt 0:00:35]} c6 {[%emt 0:02:00]} 61. Kf5 {[%emt 0:00:19]} Ke3 {[%emt 0:00:32]} 62. Ne4 {[%emt 0:00:28]} b5 {[%emt 0:00:15]} 63. Ng5 {[%emt 0:00:28]} Kd2 {[%emt 0:00:41]} 64. Ne6 {[%emt 0:00:16]} Nxe6 {[%emt 0:01:29]} 65. Kxe6 {[%emt 0:00:54]} Kxc2 {[%emt 0:00:05]} 66. h7 {[%emt 0:00:08]} Kxb3 {[%emt 0:00:04]} 67. h8=Q {[%emt 0:00:20]} Kxa4 {[%emt 0:00:12]} 68. Kd6 {[%emt 0:00:03]} b4 {[%emt 0:00:05]} 69. Kxc6 {[%emt 0:00:06]} b3 {[%emt 0:00:13]} 70. Qa1+ {[%emt 0:01:23]} Kb4 {[%emt 0:00:04]} 71. Kd5 {[%emt 0:00:05]} a4 {[%emt 0:00:04]} 72. Kd4 {[%emt 0:00:04]} a3 {[%emt 0:00:09]} 73. Qc3+ {[%emt 0:00:02]} 1-0

[Event "WYCC 2018 G14"]
[Site "Halkidiki"]
[Date "2018.10.27"]
[Round "8"]
[White "Allahverdiyeva, Ayan"]
[Black "Kamalidenova, Meruert"]
[Result "0-1"]
[ECO "B90"]
[WhiteElo "2116"]
[BlackElo "1999"]
[Annotator "NA"]
[PlyCount "116"]
[EventDate "2018.10.20"]
[EventType "swiss"]
[EventCountry "GRE"]
[SourceTitle "playchess.com"]
[Source "ChessBase"]
[SourceQuality "1"]
[TimeControl "40/5400+30:1800+30"]

1. e4 c5 2. Nf3 d6 3. d4 cxd4 4. Nxd4 Nf6 5. Nc3 a6 6. Be3 e5 7. Nb3 Be7 8. f3 Be6 9. Qd2 O-O 10. O-O-O Nbd7 11. g4 b5 12. g5 Nh5 13. Nd5 Bxd5 14. exd5 f5 15. gxf6 Bxf6 16. Na5 Nf4 17. c4 bxc4 18. Nc6 Qe8 19. Bxc4 Bg5 20. h4 Bh6 21. Kb1 Qh5 22. Rdf1 Kh8 23. Ka1 Nf6 24. Qa5 Qf7 25. Bb6 Qb7 26. Bf2 Rfc8 27. Rc1 Ng6 28. Rc2 Ne7 29. Nb4 Bd2 30. Bxa6 Qxb4 31. Qxb4 Bxb4 32. Bxc8 Nxc8 33. Rd1 Ne7 34. Kb1 Nfxd5 35. a3 Ba5 36. b4 Bc7 37. Kb2 Kg8 38. Kb3 Kf7 39. Rc4 Ke6 40. a4 Rb8 41. Ka3 Bb6 42. Bxb6 Nxb6 43. Rg4 g6 44. Rc1 d5 45. a5 Nc4+ 46. Ka4 Nc6 47. Rgxc4 dxc4 48. b5 Nd4 49. b6 Kd5 50. Kb4 Ra8 51. Rd1 c3 52. b7 Rf8 53. a6 c2 54. Rc1 Kc6 55. f4 exf4 56. Kc4 Nf5 57. Kb4 Ne3 58. Ka5 f3 0-1